bitfinex/quotes_SOLUSD_20260306
["timestamp","ask_amount","ask_price","bid_price","bid_amount"]
[1772788274143,39.79579073,87.949,87.856,0.4919764]
[1772788274341,11.37022592,87.949,87.862,3.69383402]
[1772788274545,11.37022592,87.949,87.866,0.4919764]
[1772788274744,11.37022592,87.949,87.867,0.4919764]
[1772788274951,9.03410716,87.94,87.867,0.4919764]
[1772788275528,0.28432314,87.948,87.867,0.4919764]
[1772788275843,0.28432314,87.948,87.855,56.81800939]
[1772788275844,11.37022592,87.949,87.872,0.4919764]
[1772788276144,39.79579073,87.949,87.873,0.4919764]
[1772788276345,11.37022592,87.949,87.873,0.4919764]
[1772788276840,39.79579073,87.949,87.873,0.4919764]
[1772788277249,9.03410716,87.94,87.873,0.4919764]
[1772788277932,11.37151889,87.939,87.878,0.4919764]
[1772788279133,39.80031612,87.939,87.878,0.4919764]
[1772788280033,39.80031612,87.939,87.88,0.4919764]
[1772788280732,9.03410716,87.91,87.875,11.37978791]
[1772788281139,9.03410716,87.92,87.875,11.37978791]
[1772788281349,9.03410716,87.91,87.872,0.4919764]
[1772788281554,9.03410716,87.9,87.853,11.38258816]
[1772788281758,9.03410716,87.88,87.826,0.4919764]
[1772788281959,11.37928287,87.879,87.828,0.4919764]
[1772788284481,9.03410716,87.84,87.77,0.4919764]
[1772788284678,4.82477569,87.848,87.77,0.4919764]
[1772788284679,9.03410716,87.81,87.77,0.4919764]
[1772788284877,9.03410716,87.82,87.77,0.4919764]
[1772788285068,9.03410716,87.81,87.77,0.4919764]
[1772788285462,0.28432314,87.819,87.77,0.4919764]
[1772788286085,9.03410716,87.81,87.77,0.4919764]
[1772788286594,11.38835426,87.809,87.772,0.4919764]
[1772788286778,11.38769682,87.815,87.772,0.4919764]
[1772788287287,9.03410716,87.82,87.772,0.4919764]
[1772788288092,40.13448651,87.829,87.772,0.4919764]
[1772788288786,40.13448651,87.829,87.75,45.58355022]
[1772788288787,11.38576096,87.829,87.774,0.4919764]
[1772788290470,0.28432314,87.833,87.774,0.4919764]
[1772788290670,11.38537207,87.832,87.775,39.87467957]
[1772788290877,11.3846879,87.838,87.776,0.4919764]
[1772788291194,11.52533041,87.849,87.776,0.4919764]
[1772788291393,11.38316884,87.849,87.776,0.4919764]
[1772788291584,28.4536988,87.863,87.78,0.4919764]
[1772788291779,11.3814846,87.862,87.78,0.4919764]
[1772788292093,9.03410716,87.86,87.78,0.4919764]
[1772788293192,45.51527291,87.883,87.785,0.4919764]
[1772788293376,9.03410716,87.87,87.786,0.4919764]
[1772788293577,9.03410716,87.86,87.786,0.4919764]
[1772788294704,0.28432314,87.869,87.791,0.4919764]
[1772788295374,9.03410716,87.86,87.791,0.4919764]
[1772788295885,9.03410716,87.85,87.791,0.4919764]
[1772788296480,9.03410716,87.84,87.791,0.4919764]
[1772788296679,9.03410716,87.84,87.787,39.86922892]
[1772788296680,11.38446475,87.839,87.793,0.4919764]
[1772788296999,39.84562664,87.839,87.793,0.4919764]
[1772788297485,9.03410716,87.81,87.768,0.4919764]
[1772788297901,0.28432314,87.819,87.768,0.4919764]
[1772788298485,9.03410716,87.81,87.768,0.4919764]
[1772788298712,11.38835426,87.809,87.769,11.39354441]
[1772788299206,0.28432314,87.808,87.769,11.39354441]
[1772788299890,9.03410716,87.8,87.769,11.39354441]
[1772788300087,0.28432314,87.808,87.741,0.4919764]
[1772788300289,0.28432314,87.769,87.74,0.6919764]
[1772788300489,0.28432314,87.789,87.742,0.4919764]
[1772788300688,11.38965136,87.799,87.744,0.4919764]
[1772788300880,0.28432314,87.798,87.744,0.4919764]
[1772788301685,2.47215037,105.09,87.743,39.88922193]
[1772788301686,45.51091693,87.891,87.758,3.69383402]
[1772788301894,9.03410716,87.88,87.761,0.4919764]
[1772788302785,45.51091693,87.891,87.76,0.28432314]
[1772788302786,39.82749006,87.879,87.766,0.4919764]
[1772788302985,39.82749006,87.879,87.767,0.4919764]
[1772788303413,39.82749006,87.879,87.777,0.4919764]
[1772788303583,39.82749006,87.879,87.792,0.4919764]
[1772788303784,39.82749006,87.879,87.793,0.4919764]
[1772788304894,39.8229585,87.889,87.798,0.4919764]
[1772788305318,0.14216157,87.888,87.798,0.4919764]
[1772788305515,0.28432314,87.888,87.798,0.4919764]
[1772788305814,0.28432314,87.879,87.798,0.4919764]
[1772788307017,0.28432314,87.877,87.803,0.4919764]
[1772788308924,0.28432314,87.869,87.803,0.4919764]
[1772788309216,11.38070742,87.868,87.808,0.4919764]
[1772788311296,28.44853091,87.878,87.809,39.85923993]
[1772788311501,0.28432314,87.877,87.81,0.4919764]
[1772788311702,0.47537804,87.876,87.809,38.74249628]
[1772788313426,0.47537804,87.865,87.809,38.74249628]
[1772788313620,0.47537804,87.865,87.81,0.47482392]
[1772788314410,11.38083694,87.867,87.81,0.47482392]
[1772788314605,39.8329293,87.867,87.81,0.47482392]
[1772788314929,0.47537804,87.859,87.809,10.74643453]
[1772788315125,0.47537804,87.858,87.809,10.74643453]
[1772788315423,0.47537804,87.847,87.8,11.38952164]
[1772788315722,0.47537804,87.847,87.799,28.94874117]
[1772788315723,0.47537804,87.839,87.79,0.47482392]
[1772788316030,0.47537804,87.829,87.791,11.39068925]
[1772788316414,0.47537804,87.828,87.779,11.39224643]
[1772788316808,0.47537804,87.819,87.779,11.39224643]
[1772788317412,39.85515497,87.818,87.769,11.39354441]
[1772788317611,0.47537804,87.816,87.769,11.39354441]
[1772788317819,0.47537804,87.809,87.769,11.39354441]
[1772788318406,0.47537804,87.809,87.724,56.61690884]
[1772788318407,0.47537804,87.808,87.759,11.39484269]
[1772788318918,0.47537804,87.799,87.759,11.39484269]
[1772788319324,0.47537804,87.799,87.76,0.47482392]
[1772788319830,0.47537804,87.797,87.761,11.39458301]
[1772788320204,0.47537804,87.797,87.76,0.47482392]
[1772788320406,0.47537804,87.796,87.752,11.39562348]
[1772788321316,0.47537804,87.796,87.749,0.47482392]
[1772788321836,0.47537804,87.796,87.75,11.39601139]
[1772788322010,0.47751069,87.793,87.75,11.87054441]
[1772788322217,0.47751069,87.793,87.751,0.47453302]
[1772788323516,11.3905595,87.792,87.753,0.47453302]
[1772788323830,11.86807019,87.792,87.753,0.47453302]
[1772788324016,0.47751069,87.791,87.753,0.47453302]
[1772788325426,11.39002094,87.797,87.753,0.47453302]
[1772788325836,0.47751069,87.796,87.755,0.47453302]
[1772788327911,0.47751069,87.794,87.744,11.39679066]
[1772788328124,0.47751069,87.794,87.744,39.88876731]
[1772788329924,0.47751069,87.794,87.747,0.47453302]
[1772788330127,0.47751069,87.792,87.747,0.47453302]
[1772788332548,0.47751069,87.792,87.731,45.59390281]
[1772788332549,0.47751069,87.792,87.749,0.47453302]
[1772788332844,0.47751069,87.79,87.749,0.47453302]
[1772788334526,0.47751069,87.79,87.751,0.47453302]
[1772788336035,0.47751069,87.794,87.753,0.47453302]
[1772788337528,0.47751069,87.802,87.753,0.47453302]
[1772788337734,47.2,87.804,87.754,0.47453302]
[1772788337931,47.2,87.804,87.752,96.86388912]
[1772788337932,47.2,87.804,87.756,0.47453302]
[1772788338451,58.58907741,87.804,87.756,0.47453302]
[1772788338637,0.28432314,87.832,87.756,0.47453302]
[1772788338638,9.4,87.815,87.756,0.47453302]
[1772788338846,45.51502933,87.884,87.759,0.47453302]
[1772788338847,20.7855017,87.831,87.759,0.47453302]
[1772788339151,9.05908846,87.83,87.759,0.47453302]
[1772788339728,0.47751069,87.829,87.759,0.47453302]
[1772788340728,0.47751069,87.827,87.761,0.47453302]
[1772788341848,0.47751069,87.824,87.761,0.47453302]
[1772788342924,0.47751069,87.822,87.763,0.47453302]
[1772788344554,0.47751069,87.82,87.765,0.47453302]
[1772788345646,0.47751069,87.828,87.767,3.69383402]
[1772788345851,0.47751069,87.858,87.769,0.47453302]
[1772788346233,0.47751069,87.857,87.769,0.47453302]
[1772788346430,0.47751069,87.854,87.774,0.47453302]
[1772788346655,0.47751069,87.854,87.775,0.47453302]
[1772788348434,0.47751069,87.852,87.78,0.47453302]
[1772788348641,0.47751069,87.852,87.781,0.47453302]
[1772788350561,0.47751069,87.849,87.783,0.47453302]
[1772788350738,0.47751069,87.849,87.784,0.47453302]
[1772788353834,0.47565202,87.847,87.786,0.49311007]
[1772788354853,0.47565202,87.847,87.789,0.49311007]
[1772788355051,0.47565202,87.858,87.79,0.49311007]
[1772788355963,0.47565202,87.858,87.794,3.69383402]
[1772788356170,0.47565202,87.858,87.796,0.49311007]
[1772788356468,0.47565202,87.863,87.796,0.49311007]
[1772788358271,0.47565202,87.861,87.8,3.69383402]
[1772788358476,0.47565202,87.861,87.801,0.49311007]
[1772788359378,0.47565202,87.859,87.801,0.49311007]
[1772788360089,0.47565202,87.858,87.801,0.49311007]
[1772788360585,0.47565202,87.856,87.803,0.49311007]
[1772788362493,0.47565202,87.854,87.805,0.49311007]
[1772788364488,0.47565202,87.852,87.807,0.49311007]
[1772788365883,0.47565202,87.851,87.807,0.49311007]
[1772788366495,0.47565202,87.849,87.809,0.49311007]
[1772788367696,0.47565202,87.849,87.811,0.49311007]
[1772788368290,11.38329842,87.848,87.811,0.49311007]
[1772788368496,0.47565202,87.847,87.811,0.49311007]
[1772788369595,1.3,87.84,87.813,0.49311007]
[1772788370191,11.86011677,87.839,87.813,0.49311007]
[1772788370697,0.47565202,87.839,87.813,0.49311007]
[1772788371294,1.3,87.84,87.813,0.49311007]
[1772788371691,1.3,87.84,87.815,0.49311007]
[1772788372177,1.77565202,87.84,87.815,0.49311007]
[1772788372500,0.47565202,87.839,87.815,0.49311007]
[1772788374103,0.47565202,87.839,87.816,11.38744647]
[1772788374402,0.47565202,87.839,87.817,0.49311007]
[1772788374603,1.3,87.84,87.817,0.49311007]
[1772788375199,1.3,87.84,87.819,0.49311007]
[1772788375784,0.47565202,87.839,87.805,11.38887307]
[1772788376889,0.47565202,87.838,87.805,11.88198314]
[1772788378506,0.47565202,87.836,87.805,0.49311007]
[1772788378799,0.47565202,87.836,87.781,56.95988794]
[1772788379102,0.47565202,87.819,87.777,0.49311007]
[1772788380505,0.47565202,87.819,87.779,0.49311007]
[1772788381407,0.48907336,87.833,87.779,0.49311007]
[1772788382687,0.48907336,87.833,87.781,0.49134701]
[1772788385208,0.48907336,87.833,87.782,96.83078535]
[1772788385513,0.48907336,87.833,87.783,0.49134701]
[1772788385923,28.45542238,87.857,87.783,0.49134701]
[1772788385924,0.48907336,87.84,87.783,0.49134701]
[1772788386526,0.48907336,87.839,87.783,0.49134701]
[1772788387624,28.45542238,87.857,87.783,0.49134701]
[1772788387625,9.4,87.887,87.787,3.69383402]
[1772788387832,0.48907336,87.879,87.789,0.49134701]
[1772788388118,0.48907336,87.878,87.789,0.49134701]
[1772788388629,0.48907336,87.878,87.795,0.49134701]
[1772788388832,0.48907336,87.878,87.798,0.49134701]
[1772788389132,0.48907336,87.878,87.801,0.49134701]
[1772788389311,0.48907336,87.878,87.803,0.28432314]
[1772788389504,0.48907336,87.878,87.804,0.49134701]
[1772788389703,0.48907336,87.889,87.812,0.49134701]
[1772788389936,0.48907336,87.898,87.817,0.49134701]
[1772788390220,0.48907336,87.898,87.819,0.49134701]
[1772788390820,0.48907336,87.898,87.821,0.49134701]
[1772788391213,0.48907336,87.898,87.817,0.28432314]
[1772788391214,0.48907336,87.898,87.824,0.49134701]
[1772788391620,11.37608001,87.904,87.829,0.49134701]
[1772788391815,0.48907336,87.903,87.83,0.49134701]
[1772788392222,0.48907336,87.899,87.83,0.49134701]
[1772788393030,0.48907336,87.879,87.83,0.49134701]
[1772788393232,0.30504593,87.859,87.825,10.8812336]
[1772788393617,0.28432314,87.882,87.81,0.49134701]
[1772788393618,11.38316884,87.849,87.81,0.49134701]
[1772788393914,11.38316884,87.849,87.812,0.5]
[1772788395623,39.84109095,87.849,87.812,0.5]
[1772788395828,39.84109095,87.849,87.805,11.88887307]
[1772788396025,39.84109095,87.849,87.806,0.5]
[1772788397136,11.38316884,87.849,87.806,0.5]
[1772788397844,11.38316884,87.849,87.808,0.5]
[1772788399117,39.84109095,87.849,87.808,0.5]
[1772788399718,39.84109095,87.849,87.803,0.5]
[1772788401118,5.10909883,87.848,87.743,0.5]
[1772788401316,9.04932326,87.77,87.724,0.5]
[1772788401517,9.04932326,87.76,87.724,0.5]
[1772788401929,11.39484269,87.759,87.74,1e-08]
[1772788402323,39.88194942,87.759,87.74,1e-08]
[1772788402931,9.04932326,87.75,87.74,1e-08]
[1772788403119,0.28432314,87.758,87.74,1e-08]
[1772788403321,39.88194942,87.759,87.74,1e-08]
[1772788404038,0.28432314,87.756,87.74,1e-08]
[1772788404239,0.28432314,87.749,87.71,0.2]
[1772788404427,96.85837026,87.757,87.688,11.40401385]
[1772788404428,0.28432314,87.729,87.688,11.40401385]
[1772788405237,0.28432314,87.726,87.69,1e-08]
[1772788405425,0.28432314,87.699,87.636,7.15738962]
[1772788405626,0.28432314,87.699,87.597,45.66315051]
[1772788405627,9.04932326,87.69,87.638,0.5]
[1772788405824,0.28432314,87.699,87.638,0.5]
[1772788406022,0.28432314,87.697,87.64,0.5]
[1772788406229,0.28432314,87.689,87.64,0.5]
[1772788406837,0.28432314,87.679,87.64,0.5]
[1772788407050,0.28432314,87.659,87.614,0.5]
[1772788407233,0.28432314,87.659,87.594,0.5]
[1772788407845,0.28432314,87.669,87.594,0.5]
[1772788408045,0.28432314,87.669,87.593,39.95748932]
[1772788408046,9.04932326,87.66,87.596,0.5]
[1772788408339,0.48907336,87.658,87.595,39.95661852]
[1772788408742,0.48907336,87.648,87.595,39.95661852]
[1772788409041,0.47764627,87.666,87.595,39.95661852]
[1772788409524,11.40667062,87.668,87.598,3.69383402]
[1772788409936,11.88431689,87.668,87.598,3.69383402]
[1772788410132,0.47764627,87.667,87.601,0.47450032]
[1772788410823,0.47764627,87.666,87.601,0.47450032]
[1772788412327,0.49980839,87.664,87.603,0.47001929]
[1772788413626,0.49980839,87.684,87.607,0.47001929]
[1772788414153,0.49980839,87.693,87.607,0.47001929]
[1772788414334,0.49980839,87.693,87.613,0.47001929]
[1772788414851,28.50222164,87.713,87.613,0.47001929]
[1772788414852,0.49980839,87.703,87.615,0.47001929]
[1772788415019,0.49980839,87.718,87.622,0.47001929]
[1772788415226,0.49980839,87.718,87.616,103.14134404]
[1772788415227,0.49980839,87.718,87.625,0.47001929]
[1772788415449,0.49980839,87.718,87.626,0.47001929]
[1772788415624,0.28432314,87.723,87.632,0.47001929]
[1772788415827,0.28432314,87.723,87.642,0.47001929]
[1772788416135,11.39946878,87.724,87.647,0.47001929]
[1772788416451,11.39946878,87.724,87.652,0.47001929]
[1772788416656,11.39899916,87.727,87.653,0.47001929]
[1772788416958,0.49980839,87.726,87.653,0.47001929]
[1772788418458,0.49980839,87.724,87.658,0.47001929]
[1772788419236,0.49980839,87.719,87.658,0.47001929]
[1772788419460,0.49980839,87.709,87.658,0.47001929]
[1772788421039,0.49980839,87.707,87.66,0.47001929]
[1772788422058,0.49980839,87.705,87.662,0.47001929]
[1772788424563,0.49980839,87.722,87.664,0.47001929]
[1772788426737,11.39855921,87.731,87.666,0.47001929]
[1772788427053,0.49980839,87.73,87.666,0.47001929]
[1772788427250,0.49980839,87.73,87.667,0.47001929]
[1772788427640,0.49980839,87.729,87.667,0.47001929]
[1772788428261,0.49980839,87.729,87.669,0.47001929]
[1772788429356,0.49980839,87.729,87.671,0.47001929]
[1772788429954,0.49980839,87.727,87.671,0.47001929]
[1772788431456,0.49980839,87.725,87.673,0.47001929]
[1772788433776,0.49980839,87.725,87.675,0.47001929]
[1772788433953,0.49980839,87.723,87.675,0.47001929]
[1772788435975,0.49980839,87.723,87.677,0.47001929]
[1772788437679,0.49980839,87.721,87.677,0.47001929]
[1772788438061,0.49980839,87.719,87.679,0.47001929]
[1772788439173,0.49980839,87.719,87.678,39.91879376]
[1772788439875,0.49980839,87.719,87.679,0.47001929]
[1772788440369,0.49980839,87.728,87.681,0.47001929]
[1772788440774,0.49980839,87.727,87.681,0.47001929]
[1772788441972,0.4793654,87.747,87.681,0.47001929]
[1772788442275,45.55397612,87.808,87.67,1.14064104]
[1772788442276,11.39094875,87.789,87.687,0.51101576]
[1772788442461,9.04932326,87.78,87.687,0.51101576]
[1772788443177,9.04932326,87.78,87.689,0.51101576]
[1772788443359,39.86832063,87.789,87.694,0.51101576]
[1772788443560,39.86832063,87.789,87.695,0.51101576]
[1772788443871,9.04932326,87.78,87.695,0.51101576]
[1772788444259,0.05727699,87.779,87.695,0.51101576]
[1772788444476,0.05727699,87.788,87.696,1.14030286]
[1772788444656,0.05727699,87.779,87.698,0.51101576]
[1772788445572,0.05727699,87.779,87.694,1.42465201]
[1772788445573,0.05727699,87.779,87.701,0.51101576]
[1772788447480,0.05727699,87.779,87.706,0.51101576]
[1772788447774,0.05727699,87.779,87.707,0.51101576]
[1772788448779,39.86877476,87.788,87.707,0.51101576]
[1772788448780,0.06620097,87.749,87.707,0.51101576]
[1772788449570,0.06620097,87.749,87.709,0.51101576]
[1772788450669,0.06620097,87.749,87.711,0.51101576]
[1772788452885,0.06620097,87.749,87.713,0.51101576]
[1772788453872,0.07680702,87.758,87.713,0.51101576]
[1772788455371,0.07680702,87.758,87.715,0.51101576]
[1772788457494,0.07680702,87.758,87.717,0.51101576]
[1772788459468,0.07680702,87.758,87.719,0.51101576]
[1772788460591,0.07680702,87.758,87.721,0.51101576]
[1772788462695,0.07680702,87.758,87.723,0.51101576]
[1772788464195,1.3,87.76,87.723,0.51101576]
[1772788464495,0.09806767,87.775,87.724,0.51101576]
[1772788464680,0.09806767,87.784,87.726,0.51101576]
[1772788465377,11.3910785,87.788,87.726,0.51101576]
[1772788465579,0.09985892,87.787,87.726,0.51101576]
[1772788466794,0.09985892,87.787,87.728,0.51101576]
[1772788468909,0.09985892,87.787,87.73,0.51101576]
[1772788470486,0.09985892,87.787,87.732,0.51101576]
[1772788472787,0.09985892,87.787,87.734,0.49656237]
[1772788473895,0.09985892,87.787,87.736,0.49656237]
[1772788474896,0.09985892,87.787,87.738,0.49656237]
[1772788476297,11.39094875,87.789,87.738,0.49656237]
[1772788476604,0.12142942,87.788,87.738,0.49656237]
[1772788477189,0.12142942,87.788,87.74,0.49656237]
[1772788478815,0.12142942,87.788,87.742,0.49656237]
[1772788479516,11.38991081,87.797,87.742,0.49656237]
[1772788480016,0.12595408,87.796,87.744,0.49656237]
[1772788482311,0.12595408,87.796,87.746,0.49656237]
[1772788482510,0.13034226,87.789,87.746,0.49656237]
[1772788484423,0.13034226,87.789,87.748,0.49656237]
[1772788486815,0.135955,87.788,87.75,0.49656237]
[1772788489023,0.135955,87.788,87.752,0.49656237]
[1772788491028,0.14132351,87.792,87.754,0.49656237]
[1772788493035,0.14519766,87.789,87.755,11.39536208]
[1772788493338,0.14519766,87.789,87.756,0.49656237]
[1772788496649,0.14519766,87.789,87.758,0.49656237]
[1772788498546,0.14519766,87.789,87.759,11.39484269]
[1772788498740,0.14519766,87.789,87.76,0.49656237]
[1772788498951,0.1513329,87.795,87.76,0.49656237]
[1772788499443,0.1525195,87.802,87.76,0.49656237]
[1772788499750,20.78891153,87.805,87.76,0.49656237]
[1772788499927,0.1525195,87.809,87.76,0.49656237]
[1772788500532,0.15369139,87.807,87.762,0.49656237]
[1772788501034,0.15369139,87.799,87.762,0.49656237]
[1772788502038,0.15711905,87.816,87.762,0.49656237]
[1772788502227,11.54417652,87.819,87.762,0.49656237]
[1772788502431,0.15711905,87.818,87.762,0.49656237]
[1772788502632,0.15711905,87.818,87.764,0.56084183]
[1772788503041,11.60727527,87.82,87.764,0.56084183]
[1772788503042,0.1,87.82,87.764,0.56084183]
[1772788503353,0.15823598,87.858,87.767,0.56084183]
[1772788503558,0.15823598,87.849,87.767,0.56084183]
[1772788504431,3.6243459,87.85,87.767,0.56084183]
[1772788504432,0.15933725,87.829,87.767,0.56084183]
[1772788504650,0.15933725,87.818,87.769,0.56084183]
[1772788506449,11.38705747,87.819,87.769,0.56084183]
[1772788506757,11.38627953,87.825,87.771,0.56084183]
[1772788507234,0.16257826,87.824,87.771,0.56084183]
[1772788510746,0.16257826,87.824,87.773,0.56084183]
[1772788510747,0.16571025,87.819,87.773,0.56084183]
[1772788512557,11.55491261,87.818,87.775,0.56084183]
[1772788513456,0.16871909,87.817,87.775,0.56084183]
[1772788513653,11.55616556,87.816,87.777,0.56084183]
[1772788515058,11.38744647,87.816,87.777,0.56084183]
[1772788515355,11.38677277,87.822,87.777,0.56084183]
[1772788515862,0.17069062,87.826,87.779,0.56084183]
[1772788517261,11.38627953,87.825,87.781,0.56084183]
[1772788517469,0.1725915,87.84,87.781,0.56084183]
[1772788517962,0.1725915,87.838,87.781,0.56084183]
[1772788519346,0.17445124,87.836,87.783,0.56084183]
[1772788521248,11.56124937,87.835,87.784,39.87059144]
[1772788521449,11.56124937,87.835,87.785,0.56084183]
[1772788521766,0.17626617,87.834,87.785,0.56084183]
[1772788522145,0.17716281,87.833,87.785,0.56084183]
[1772788522452,0.17716281,87.829,87.785,0.56084183]
[1772788523362,0.17804953,87.827,87.787,0.56084183]
[1772788524465,0.17892576,87.819,87.78,0.56084183]
[1772788526058,0.18065741,87.817,87.782,0.56084183]
[1772788527966,0.18151262,87.815,87.782,0.56084183]
[1772788528868,0.18151262,87.815,87.777,11.39247684]
[1772788529070,0.18151262,87.815,87.757,11.39510238]
[1772788529071,0.18235812,87.809,87.757,11.39510238]
[1772788529269,0.18235812,87.809,87.758,0.56084183]
[1772788530064,0.18401328,87.807,87.76,0.56084183]
[1772788530266,0.18401328,87.799,87.76,0.56084183]
[1772788530463,0.28432314,87.799,87.76,0.56084183]
[1772788530669,0.18401328,87.789,87.738,0.56084183]
[1772788532373,39.86877476,87.788,87.739,39.89104046]
[1772788532673,11.5782761,87.788,87.74,0.55288575]
[1772788532872,0.1871976,87.787,87.74,0.55288575]
[1772788534581,0.18873201,87.785,87.742,0.55288575]
[1772788535767,39.87059144,87.784,87.743,11.39692055]
[1772788535973,0.18949406,87.783,87.744,0.55288575]
[1772788536496,11.39159755,87.784,87.744,0.55288575]
[1772788537063,0.19097617,87.783,87.744,0.55288575]
[1772788539186,0.19097617,87.783,87.709,102.0]
[1772788539187,0.19241687,87.759,87.724,0.55288575]
[1772788539564,0.19241687,87.767,87.724,0.55288575]
[1772788542772,0.19451194,87.759,87.711,0.55288575]
[1772788543078,39.87876853,87.766,87.712,0.55288575]
[1772788543472,0.19519951,87.765,87.712,0.55288575]
[1772788545288,11.39419351,87.764,87.713,39.90286501]
[1772788545473,0.19655567,87.763,87.714,0.55288575]
[1772788546690,0.19722232,87.759,87.714,0.55288575]
[1772788546893,0.19722232,87.739,87.707,0.55288575]
[1772788547191,0.19722232,87.739,87.7,0.55288575]
[1772788547488,0.19788527,87.729,87.7,0.55288575]
[1772788548772,0.19788527,87.729,87.692,11.40354878]
[1772788548993,0.19854275,87.737,87.693,0.55288575]
[1772788550083,0.19919043,87.729,87.695,0.55288575]
[1772788550284,0.19983285,87.735,87.695,0.55288575]
[1772788550585,0.19983285,87.729,87.695,0.55288575]
[1772788550984,0.19983285,87.719,87.69,0.2]
[1772788551695,0.19983285,87.719,87.691,0.55288575]
[1772788551999,0.19983285,87.719,87.692,0.55288575]
[1772788552688,0.19983285,87.719,87.69,0.2]
[1772788552689,11.39808968,87.734,87.694,0.55288575]
[1772788552880,56.9781534,87.753,87.694,0.55288575]
[1772788552881,0.20110034,87.751,87.694,0.55288575]
[1772788554987,11.39601139,87.75,87.696,0.55288575]
[1772788557311,0.20413009,87.755,87.698,0.55288575]
[1772788558907,0.20471481,87.764,87.698,0.55288575]
[1772788559306,0.20528435,87.762,87.7,0.55288575]
[1772788559495,0.20528435,87.759,87.7,0.55288575]
[1772788561009,0.2058646,87.749,87.7,0.55288575]
[1772788561398,0.20643285,87.747,87.702,0.55288575]
[1772788562908,0.2075498,87.739,87.702,0.55288575]
[1772788563793,0.20809897,87.737,87.697,11.4028313]
[1772788564014,0.20809897,87.729,87.697,11.4028313]
[1772788564509,0.20809897,87.729,87.695,0.58175406]
[1772788564906,0.20809897,87.729,87.696,11.40302864]
[1772788565297,0.20809897,87.729,87.696,11.9847827]
[1772788565503,0.20809897,87.729,87.697,0.58175406]
[1772788566299,11.39701061,87.743,87.699,0.58175406]
[1772788566510,0.2097115,87.709,87.69,1e-08]
[1772788566902,0.2097115,87.709,87.661,11.98933553]
[1772788567209,0.2097115,87.699,87.662,0.58175406]
[1772788568312,0.2097115,87.699,87.66,0.2]
[1772788568520,0.21075404,87.697,87.66,0.2]
[1772788568920,0.21075404,87.697,87.66,0.78175406]
[1772788569211,0.21075404,87.697,87.662,0.58175406]
[1772788570194,0.21177037,87.716,87.664,0.58175406]
[1772788570812,0.21177037,87.709,87.666,0.58175406]
[1772788571599,0.21227405,87.699,87.661,0.58175406]
[1772788573409,0.21227405,87.699,87.66,11.60762436]
[1772788573410,11.61604221,87.698,87.663,0.58175406]
[1772788573614,11.4023039,87.702,87.663,0.58175406]
[1772788573810,11.4015554,87.708,87.663,0.58175406]
[1772788575411,11.4015554,87.708,87.66,0.2]
[1772788575412,11.40003876,87.719,87.664,39.92516882]
[1772788575619,11.40003876,87.719,87.665,0.58175406]
[1772788576395,11.61475451,87.719,87.665,0.58175406]
[1772788576916,11.39899916,87.727,87.665,0.58175406]
[1772788577608,11.39821959,87.733,87.667,0.58175406]
[1772788578306,0.21564146,87.732,87.667,0.58175406]
[1772788579824,0.21608933,87.73,87.669,0.58175406]
[1772788580202,11.39847944,87.731,87.669,0.58175406]
[1772788581118,0.21698159,87.745,87.672,0.58175406]
[1772788581505,0.21698159,87.745,87.673,0.58175406]
[1772788582223,11.39679066,87.744,87.676,0.58175406]
[1772788582807,0.21698159,87.745,87.677,0.58175406]
[1772788583520,11.39679066,87.744,87.677,0.58175406]
[1772788584105,0.21827371,87.759,87.682,0.72391563]
[1772788585310,0.21827371,87.759,87.682,0.28432314]
[1772788585519,0.21869635,87.749,87.683,0.58175406]
[1772788586312,11.39627114,87.748,87.686,0.58175406]
[1772788586736,0.21911483,87.747,87.686,0.58175406]
[1772788588713,0.21993114,87.745,87.688,0.58175406]
[1772788591029,0.22112236,87.743,87.69,0.58175406]
[1772788591645,0.22189118,87.739,87.69,0.58175406]
[1772788591830,0.22189118,87.729,87.69,0.58175406]
[1772788592016,0.22189118,87.729,87.682,0.58252456]
[1772788593335,0.22265133,87.727,87.684,0.58252456]
[1772788595228,0.22340027,87.709,87.671,11.40628029]
[1772788595436,0.22340027,87.707,87.662,0.58252456]
[1772788596345,0.22375884,87.689,87.661,11.40758147]
[1772788596634,0.22375884,87.689,87.653,11.40849789]
[1772788596825,0.28432314,87.702,87.64,0.58252456]
[1772788596826,0.02375884,87.679,87.64,0.58252456]
[1772788597035,0.02375884,87.679,87.648,4.01e-06]
[1772788597235,0.02375884,87.679,87.641,11.41018473]
[1772788597538,0.02375884,87.679,87.606,7.18941383]
[1772788597539,0.54486555,87.659,87.606,7.18941383]
[1772788598039,0.54486555,87.659,87.607,97.02421037]
[1772788598238,0.54486555,87.659,87.607,39.95114544]
[1772788599035,0.54486555,87.659,87.607,97.02421037]
[1772788599241,0.54486555,87.669,87.607,39.95114544]
[1772788599543,0.54486555,87.667,87.61,0.58252456]
[1772788601730,39.92334717,87.668,87.612,0.58252456]
[1772788601731,0.54486555,87.665,87.612,0.58252456]
[1772788602237,1.1,87.66,87.612,0.58252456]
[1772788602452,0.54486555,87.659,87.612,0.58252456]
[1772788602636,0.54486555,87.675,87.613,0.58252456]
[1772788603230,11.95075555,87.674,87.613,0.58252456]
[1772788603444,0.54486555,87.674,87.615,0.58252456]